Cogmind - Beta 10.2 --- EXPLORER MODE // 2020.12.08 @ 17:05:09 Player: Leviel Result: Smashed by cave-in Performance ------------- Evolutions (7) 3500 Regions Visited (20) 4000 Robots Destroyed (244) 1220 Value Destroyed (11816) 11816 Prototype IDs (34) 680 Alien Tech Used (0) 0 Bonus (1639) 1639 TOTAL SCORE: 22855 Bonus ------- High Alert Combat Kills 123 Follower Combat Kills 416 Aligned with FarCom 300 Met Data Miner 300 Met R17 at Cetus 500 Cogmind --------- Core Integrity 0/1300 Matter 275/300 Energy 100/100 System Corruption 45% Temperature Cool (0) Movement Core (50) Location -3/Research Parts ------- > --- POWER (3) -------- (None) > --- PROPULSION (4) --- (None) > --- UTILITY (11) ----- (None) > --- WEAPON (4) ------- (None) > --- INVENTORY (4) ---- Myomer Leg Enhanced Biometal Leg Peak State ------------ > --- POWER ------------ Cooled Fission Core Light Particle Reactor Quantum Reactor > --- PROPULSION ------- Armored Leg Myomer Leg Myomer Leg Myomer Leg > --- UTILITY ---------- Advanced Cryofiber Web Advanced Heat Sink Improved Cooling System Advanced Energy Well Improved Target Analyzer Improved Target Analyzer Centrium Medium Armor Plating Centrium Medium Armor Plating Centrium Medium Armor Plating Advanced Shield Generator Advanced Hacking Suite > --- WEAPON ----------- Quantum Rifle Coil Gun Coil Gun Improved KE Penetrator > --- INVENTORY -------- Fission Core Myomer Leg Myomer Leg Power Sword [Rating: 151] Favorites ----------- Power Cooled Fission Core Engine Reinforced Deuterium Engine Power Core Cooled Fission Core Reactor Quantum Reactor Propulsion Flexi-carbon Leg Leg Flexi-carbon Leg Utility Advanced Heat Sink Device Advanced Heat Sink Storage Advanced Energy Well Processor Improved Target Analyzer Hackware Hacking Suite Protection Centrium Medium Armor Plating Weapon Improved KE Penetrator Energy Gun Gatling Laser Energy Cannon Light EM Pulse Cannon Ballistic Gun Improved KE Penetrator Special Weapon Welding Torch Slashing Weapon Power Sword Build | -11 -10 -10 -10 -9 -8 -7 -7 -7 -7 -6 -6 -6 -6 -5 -5 -5 -5 -5 -4 -3 ------- Run | Scr Mat Min Exi Min Mat Fac Low Low Dat Pro Fac Low Low Fac Ext Cet Arc Hub Fac Res Slots Evolved 15 | . 1 . . . 4 2 . . . . 2 . . 2 . . . . 2 2 Power 2 | . . . . . 1 . . . . . . . . 1 . . . . . . Propulsion 2 | . . . . . 2 . . . . . . . . . . . . . . . Utility 9 | . 1 . . . 1 . . . . . 2 . . 1 . . . . 2 2 Weapon 2 | . . . . . . 2 . . . . . . . . . . . . . . Parts Attached 197 | 7 2 . 4 3 14 23 3 5 . 15 13 . . 1 9 31 1 4 20 42 Power 32 | 1 1 . . 1 4 5 1 . . . 1 . . . 2 5 . . 4 7 Engine 15 | 1 1 . . 1 4 5 1 . . . 1 . . . . 1 . . . . Core 3 | . . . . . . . . . . . . . . . 2 . . . 1 . Reactor 14 | . . . . . . . . . . . . . . . . 4 . . 3 7 Propulsion 50 | 2 . . 2 . 4 4 1 2 . 9 4 . . . . 7 . 4 7 4 Treads . | . . . . . . . . . . . . . . . . . . . . . Leg 50 | 2 . . 2 . 4 4 1 2 . 9 4 . . . . 7 . 4 7 4 Wheel . | . . . . . . . . . . . . . . . . . . . . . Hover . | . . . . . . . . . . . . . . . . . . . . . Flight . | . . . . . . . . . . . . . . . . . . . . . Utility 58 | 2 1 . 1 . 4 6 1 1 . 3 4 . . 1 3 9 . . 5 17 Device 37 | 1 . . 1 . . 5 1 1 . 3 2 . . . 2 6 . . 1 14 Storage 2 | . . . . . . . . . . . 1 . . . . 1 . . . . Processor 9 | 1 . . . . 1 . . . . . 1 . . 1 1 . . . 2 2 Hackware 2 | . . . . . . 1 . . . . . . . . . 1 . . . . Protection 8 | . 1 . . . 3 . . . . . . . . . . 1 . . 2 1 Artifact . | . . . . . . . . . . . . . . . . . . . . . Weapon 57 | 2 . . 1 2 2 8 . 2 . 3 4 . . . 4 10 1 . 4 14 Energy Gun 25 | 2 . . 1 . . 2 . 2 . . 3 . . . 3 3 1 . 2 6 Energy Cannon 3 | . . . . 1 1 1 . . . . . . . . . . . . . . Ballistic Gun 27 | . . . . . 1 5 . . . 3 1 . . . 1 7 . . 2 7 Ballistic Cannon . | . . . . . . . . . . . . . . . . . . . . . Launcher . | . . . . . . . . . . . . . . . . . . . . . Special Weapon 1 | . . . . 1 . . . . . . . . . . . . . . . . Impact Weapon . | . . . . . . . . . . . . . . . . . . . . . Slashing Weapon 1 | . . . . . . . . . . . . . . . . . . . . 1 Piercing Weapon . | . . . . . . . . . . . . . . . . . . . . . Special Melee Weapon . | . . . . . . . . . . . . . . . . . . . . . Unidentified Prototypes 16 | . . . 2 . . 1 . . . 1 1 . . . 1 6 . . . 4 Parts Lost 54 | . . . . 2 . 1 1 1 . 2 2 . . . 1 7 . 2 1 34 Power 5 | . . . . . . . . . . . . . . . . . . . . 5 Propulsion 9 | . . . . . . . . . . . . . . . . 3 . 2 . 4 Utility 20 | . . . . . . . . . . . 2 . . . 1 1 . . . 16 Weapon 20 | . . . . 2 . 1 1 1 . 2 . . . . . 3 . . 1 9 Highest Loss Streak 19 | . . . . 2 . 1 1 1 . 1 1 . . . 1 4 . 2 1 19 Average Slot Usage (%) 97 | . 97 100 97 93 99 97 98 98 100 99 97 100 100 94 97 97 100 99 99 91 Engine 8 | . 12 12 12 12 15 14 14 14 14 14 12 12 12 11 9 4 . . . . Core 2 | . . . . . . . . . . . . . . . 5 5 5 5 4 3 Reactor 3 | . . . . . . . . . . . . . . . . 4 11 11 9 8 Leg 24 | . 25 25 24 25 32 28 28 28 28 28 25 25 25 22 22 21 22 21 20 16 Device 16 | . 12 12 18 25 16 8 18 21 21 21 17 18 18 16 14 12 11 11 10 23 Storage 2 | . . . . . . . . . . . 6 6 6 5 5 5 5 5 5 3 Processor 7 | . 12 12 12 12 8 5 . . . . 4 6 6 11 11 11 11 11 10 9 Hackware 3 | . . . . . . 6 7 7 7 7 6 6 6 5 5 5 5 5 5 . Protection 5 | . 9 12 6 . 8 7 2 . . . . . . . . 3 5 5 15 6 Energy Gun 7 | . 25 25 22 13 . 5 7 12 14 9 9 18 18 16 13 7 3 5 4 5 Energy Cannon 2 | . . . . . 7 7 6 . . . . . . . . . . . . . Ballistic Gun 10 | . . . . . 6 12 14 14 14 17 14 6 6 5 7 12 17 16 14 10 Naked Turns 43 | . . . . . . . . . . . . . . . . . . . . 43 Heaviest Build 114 | 8 11 11 11 11 27 45 44 44 43 43 52 52 52 52 76 90 90 90 104 114 Greatest Support 99 | 20 20 20 20 20 64 68 68 66 66 83 88 88 88 88 88 88 75 75 91 99 Greatest Overweight (x) 2 | . . . . . 1 . . . . . . . . . . 1 1 2 1 1 Average Overweight (x) . | . . . . . . . . . . . . . . . . . 1 1 . . Largest Inventory Capacity 4 | 4 4 4 4 4 4 4 4 4 4 4 4 4 4 4 4 4 4 4 4 4 Average Capacity 4 | 4 4 4 4 4 4 4 4 4 4 4 4 4 4 4 4 4 4 4 4 4 Most Carried 4 | 4 4 4 4 4 4 4 4 4 4 4 4 4 4 4 4 4 4 4 4 4 Average Carried 3 | 1 3 4 3 3 3 3 3 4 4 3 3 4 4 3 3 3 4 3 3 3 Final Capacity 4 | 4 4 4 4 4 4 4 4 4 4 4 4 4 4 4 4 4 4 4 4 4 Final Carried 4 | 4 4 4 4 4 4 4 4 4 4 4 4 4 4 4 4 4 4 4 4 2 Class Distribution -------------------- 30% | Hacker-Skirmisher 22% | Scavenger-Gunner 21% | Scavenger-Tank 11% | Hacker-Mutant 9% | Scavenger-Skirmisher 3% | Scavenger-Mutant Dominant Class ---------------- Hacker-Mutant | -10/Materials Hacker-Mutant | -10/Mines Hacker-Mutant | -10/Exiles Hacker-Skirmisher | -9/Mines Hacker-Skirmisher | -8/Materials Hacker-Skirmisher | -7/Factory Hacker-Mutant | -7/Lower Caves Hacker-Skirmisher | -7/Lower Caves Hacker-Skirmisher | -7/Data Miner Hacker-Skirmisher | -6/Proximity Caves Scavenger-Skirmisher | -6/Factory Scavenger-Gunner | -6/Lower Caves Scavenger-Gunner | -6/Lower Caves Scavenger-Mutant | -5/Factory Scavenger-Gunner | -5/Extension Scavenger-Gunner | -5/Cetus Scavenger-Gunner | -5/Archives Scavenger-Gunner | -5/Hub_04(d) Scavenger-Tank | -4/Factory Scavenger-Tank | -3/Research Resources | -11 -10 -10 -10 -9 -8 -7 -7 -7 -7 -6 -6 -6 -6 -5 -5 -5 -5 -5 -4 -3 ----------- Run | Scr Mat Min Exi Min Mat Fac Low Low Dat Pro Fac Low Low Fac Ext Cet Arc Hub Fac Res Matter Collected 6446 | 112 202 . . 70 287 497 237 144 . 236 343 14 . 10 243 811 . 120 1208 1912 Remotely . | . . . . . . . . . . . . . . . . . . . . . Salvage Created 13393 | . 202 . . . 787 906 217 373 . 181 698 . . . 1119 1280 372 203 2679 4376 Parts 622 | . 9 . . . 52 45 7 18 . 9 41 . . . 37 63 11 8 117 205 Haulers Intercepted 2 | . . . . . 1 . . . . . . . . . . . . . . 1 Recyclers Shooed 5 | . . . . 1 . . . . . . 2 . . . . . . . 1 1 Parts Field Recycled 9 | . . . . . . . . . . . . . . . . . . . . 9 Retrieved Matter 84 | . . . . . . . . . . . . . . . . . . . . 84 Parts Self-Destructed . | . . . . . . . . . . . . . . . . . . . . . Prevented . | . . . . . . . . . . . . . . . . . . . . . Kills | -11 -10 -10 -10 -9 -8 -7 -7 -7 -7 -6 -6 -6 -6 -5 -5 -5 -5 -5 -4 -3 ------- Run | Scr Mat Min Exi Min Mat Fac Low Low Dat Pro Fac Low Low Fac Ext Cet Arc Hub Fac Res Combat Hostiles Destroyed 176 | . 2 . . . 11 18 4 8 . 4 9 . . . 11 25 4 3 30 47 Guns 157 | . 2 . . . 4 12 4 8 . 4 9 . . . 9 25 4 3 29 44 Cannons 9 | . . . . . 6 3 . . . . . . . . . . . . . . AOE 6 | . . . . . 1 2 . . . . . . . . 1 . . . 1 1 Classes Destroyed 16 | . 4 . . . 6 1 2 . . . 1 . . . 1 . . . . 1 Worker 10 | . 1 . . . 1 . . . . . 3 . . . . . . . . 5 Builder 16 | . . . . . 2 . . . . . 3 . . . 1 . . . 5 5 Tunneler 3 | . . . . . 1 1 . . . . . . . . . . . . . 1 Hauler 2 | . . . . . 1 . . . . . . . . . . . . . . 1 Recycler 14 | . 1 . . . . 1 . . . . 1 . . . 3 . . . 4 4 Mechanic 1 | . . . . . . . . . . . . . . . . . . . . 1 Operator 3 | . . . . . . . . . . . 1 . . . . . . . . 2 Watcher 19 | . 1 . . . 5 2 . . . . 1 . . . 1 2 . 1 3 3 Swarmer 32 | . . . . . 2 5 . 2 . 2 . . . . 1 11 . 1 . 8 Grunt 64 | . 2 . . . 6 7 2 6 . 1 4 . . . 4 4 . . 12 16 Brawler 3 | . . . . . . . 1 . . . . . . . 1 1 . . . . Duelist 3 | . . . . . 1 . . . . . . . . . . . . . 1 1 Sentry 18 | . . . . . 2 4 . . . 1 . . . . 3 . 4 1 1 2 Hunter 19 | . . . . . . . 1 . . . 2 . . . . 2 . . 7 7 Programmer 26 | . . . . . . 2 . . . . 3 . . . . . . 1 9 11 Behemoth 4 | . . . . . . . . . . . . . . . 2 . . . . 2 Cetus Guard 7 | . . . . . . . . . . . . . . . . 7 . . . . Best Kill Streak 13 | . 5 . . . 5 4 3 3 . 3 7 . . . 7 9 2 2 10 13 Combat Bots Only 5 | . 2 . . . 3 4 3 3 . 3 3 . . . 3 5 2 2 5 4 Max Kills in Single Turn 3 | . 2 . . . 2 2 1 2 . 1 3 . . . 2 3 1 2 2 2 Gunslinging 2 | . . . . . . . . 1 . . . . . . 1 2 . 1 1 1 Exploded 2 | . . . . . 1 2 . . . . . . . . 1 . . . 1 1 Melee . | . . . . . . . . . . . . . . . . . . . . . Uniques/NPCs Destroyed 1 | . . . . 1 . . . . . . . . . . . . . . . . YI-UF0 (-9/Mines) Combat | -11 -10 -10 -10 -9 -8 -7 -7 -7 -7 -6 -6 -6 -6 -5 -5 -5 -5 -5 -4 -3 -------- Run | Scr Mat Min Exi Min Mat Fac Low Low Dat Pro Fac Low Low Fac Ext Cet Arc Hub Fac Res Damage Taken 13147 | . 62 . . 183 521 889 172 272 . 423 316 . . 63 754 1376 455 265 1427 5969 Core 2716 | . . . . 34 68 308 . 45 . 31 73 . . . 464 130 101 43 111 1308 Absorbed by Shields 1702 | . . . . . . . . . . . . . . . 7 54 . . . 1641 Core Remaining (%) 75 | 100 . . . 86 87 . . . . 45 . . 91 . . . . 26 90 . Volleys Fired 495 | . 10 . . 6 40 42 8 11 . 9 28 . . 5 30 52 13 11 84 146 Largest 4 | . 2 . . 2 2 4 3 4 . 4 4 . . 2 4 4 4 4 4 4 Hottest 248 | . 100 . . 100 79 201 131 206 . 196 248 . . 160 248 230 194 194 194 215 Shots Fired 1649 | . 20 . . 7 74 140 24 39 . 31 106 . . 10 113 186 52 44 281 522 Gun 1567 | . 20 . . 6 34 103 20 39 . 31 106 . . 10 113 186 52 44 281 522 Cannon 81 | . . . . . 40 37 4 . . . . . . . . . . . . . Launcher . | . . . . . . . . . . . . . . . . . . . . . Special 1 | . . . . 1 . . . . . . . . . . . . . . . . Kinetic 1046 | . . . . . 34 74 16 22 . 24 63 . . . 35 120 50 33 200 375 Thermal 407 | . 20 . . 7 . 41 8 17 . 7 42 . . 10 50 66 2 11 81 45 Explosive . | . . . . . . . . . . . . . . . . . . . . . Electromagnetic 196 | . . . . . 40 25 . . . . 1 . . . 28 . . . . 102 Robot Hit Streak 75 | . 18 . . 25 28 23 25 27 . 22 33 . . . 75 49 21 13 47 52 Robot Miss Streak 4 | . . . . . 1 3 3 4 . 2 4 . . . 1 3 1 1 3 3 Penetration Max 2 | . . . . . . . . . . 1 1 . . . . 1 1 . 1 2 Secondary Targets 43 | . 2 . . . . . . 4 . 2 . . . . 1 17 . 1 3 13 Max Gunslinging Chain 2 | . 1 . . . . . . 1 . 1 . . . . 1 2 . 1 1 1 Shots Hit Robots 1222 | . 18 . . 7 62 92 22 37 . 25 76 . . . 94 128 39 27 211 384 Core Hits 593 | . 9 . . 4 29 70 17 26 . 23 47 . . . 56 49 17 7 90 149 Critical Hits 121 | . . . . . . 1 1 . . 1 3 . . . 4 24 7 2 27 51 Critical Kills 47 | . . . . . . . . . . 1 . . . . 2 10 1 1 11 21 Critical Parts Destroyed 67 | . . . . . . . 1 . . . 3 . . . 2 11 5 1 16 28 Melee Attacks 39 | . . . . . . . . . . . . . . . . . . . . 39 Impact . | . . . . . . . . . . . . . . . . . . . . . Slashing 39 | . . . . . . . . . . . . . . . . . . . . 39 Piercing . | . . . . . . . . . . . . . . . . . . . . . Sneak Attacks . | . . . . . . . . . . . . . . . . . . . . . Combat Hostiles . | . . . . . . . . . . . . . . . . . . . . . Follow-up Attacks . | . . . . . . . . . . . . . . . . . . . . . Damage Inflicted 30202 | . 233 . . 77 1542 2118 426 630 . 510 1712 . . . 2309 3101 1025 728 6195 9596 Guns 27219 | . 233 . . 74 352 1202 326 630 . 510 1524 . . . 2177 3101 1016 728 5939 9407 Cannons 1467 | . . . . . 866 501 100 . . . . . . . . . . . . . Explosions 1326 | . . . . . 308 392 . . . . 188 . . . 128 . . . 189 121 Melee . | . . . . . . . . . . . . . . . . . . . . . Ramming 187 | . . . . . 16 23 . . . . . . . . 4 . 9 . 67 68 Kinetic 17427 | . . . . . 352 688 251 434 . 429 771 . . . 482 1922 959 534 3932 6673 Thermal 8813 | . 233 . . 77 308 1031 175 196 . 81 753 . . . 1260 1179 57 194 2196 1073 Explosive 188 | . . . . . . . . . . . 188 . . . . . . . . . Electromagnetic 3587 | . . . . . 866 376 . . . . . . . . 563 . . . . 1782 Impact . | . . . . . . . . . . . . . . . . . . . . . Slashing . | . . . . . . . . . . . . . . . . . . . . . Piercing . | . . . . . . . . . . . . . . . . . . . . . Highest Corruption 45 | . . . . . 1 2 2 1 . . 2 2 2 . . . . . 3 45 Average Corruption 3 | . . . . . 1 1 1 1 . . 1 2 2 . . . . . 1 11 Corruption Purged 2 | . . . . . . . 1 1 . . . . . . . . . . . . Effects 125 | . . . . . 3 6 2 . . . 6 2 . . . . . . 19 87 Message Errors 27 | . . . . . 1 2 1 . . . 2 2 . . . . . . 2 17 Matter Fused 18 | . . . . . . . . . . . . . . . . . . . 2 16 Heat Flow Errors 15 | . . . . . . 1 . . . . 1 . . . . . . . 3 10 Energy Discharges 13 | . . . . . . 2 1 . . . 1 . . . . . . . 2 7 Data Loss (minor) 14 | . . . . . 2 . . . . . 2 . . . . . . . 4 6 Data Loss (major) 1 | . . . . . . . . . . . . . . . . . . . . 1 Misfires 3 | . . . . . . . . . . . . . . . . . . . . 3 Misdirections 2 | . . . . . . . . . . . . . . . . . . . . 2 Targeting Errors 27 | . . . . . . 1 . . . . . . . . . . . . 6 20 Weapon Failures 5 | . . . . . . . . . . . . . . . . . . . . 5 Overload Shots . | . . . . . . . . . . . . . . . . . . . . . Overflow Damage 169 | . . . . . 24 73 . . . . 25 . . . . . . . 42 5 Projectiles 2 | . . . . . 1 1 . . . . . . . . . . . . . . Explosions 128 | . . . . . 23 72 . . . . 25 . . . . . . . 8 . Melee 39 | . . . . . . . . . . . . . . . . . . . 34 5 Knockbacks . | . . . . . . . . . . . . . . . . . . . . . Impact . | . . . . . . . . . . . . . . . . . . . . . Kinetic . | . . . . . . . . . . . . . . . . . . . . . Secondary . | . . . . . . . . . . . . . . . . . . . . . Self-Inflicted Damage 159 | . . . . . 33 37 . . . . 35 . . . . . . . 50 4 Shots 4 | . . . . . 1 1 . . . . 1 . . . . . . . 1 . Rammed 4 | . . . . . 1 . . . . . . . . . . . . . 1 2 Targets Rammed 15 | . . . . . 2 1 . . . . . . . . 1 . 1 . 4 6 Kicked 11 | . . . . . 1 1 . . . . . . . . 1 . 1 . 3 4 Crushed . | . . . . . . . . . . . . . . . . . . . . . Highest Temperature 791 | . 504 . . 43 372 784 99 347 . 100 404 . . . 791 192 33 33 253 197 Average Temperature 164 | . 303 . . 22 149 204 40 141 . 35 138 . . . 335 57 23 13 43 46 Received Heat Transfer 2194 | . 54 . . . 297 306 117 153 . 75 93 . . 9 106 269 72 9 177 457 Effects 69 | . 4 . . . 7 28 . 1 . . 3 . . . 25 . . . 1 . Shutdowns 13 | . . . . . 3 8 . . . . 2 . . . . . . . . . Energy Bleed 7 | . 1 . . . 1 3 . 1 . . 1 . . . . . . . . . Interference 11 | . 1 . . . 3 1 . . . . . . . . 5 . . . 1 . Matter Decay 6 | . 1 . . . . 3 . . . . . . . . 2 . . . . . Short Circuit 4 | . . . . . . 2 . . . . . . . . 2 . . . . . Damage (minor) 10 | . 1 . . . . 5 . . . . . . . . 4 . . . . . Damage (major) 12 | . . . . . . 3 . . . . . . . . 9 . . . . . Damage (core) 6 | . . . . . . 3 . . . . . . . . 3 . . . . . Siege Activations . | . . . . . . . . . . . . . . . . . . . . . Robots Corrupted 3 | . . . . . . 1 . . . . . . . . . . . . . 2 Combat Hostiles 3 | . . . . . . 1 . . . . . . . . . . . . . 2 Parts Fried 20 | . . . . . 6 2 . . . . . . . . 2 . . . . 10 Impact Corruptions 3 | . . . . . . . . . . . . . . . . . . . 2 1 Robots Melted 1 | . . . . . . . . . . . . . . . 1 . . . . . Combat Hostiles 1 | . . . . . . . . . . . . . . . 1 . . . . . Parts Melted 21 | . 2 . . . . . . 1 . . 6 . . . 4 4 . . 1 3 Heat Transferred 13670 | . 703 . . 247 350 1019 208 282 . 185 1675 . . . 2561 2010 74 222 2579 1555 Parts Sabotaged . | . . . . . . . . . . . . . . . . . . . . . Parts Stolen . | . . . . . . . . . . . . . . . . . . . . . Parts Stripped . | . . . . . . . . . . . . . . . . . . . . . Power Chain Reactions 7 | . . . . . 4 1 . . . . . . . . 1 . . . . 1 Missiles Intercepted . | . . . . . . . . . . . . . . . . . . . . . Alert | -11 -10 -10 -10 -9 -8 -7 -7 -7 -7 -6 -6 -6 -6 -5 -5 -5 -5 -5 -4 -3 ------- Run | Scr Mat Min Exi Min Mat Fac Low Low Dat Pro Fac Low Low Fac Ext Cet Arc Hub Fac Res Peak Influence 552 | . 97 26 . . 293 552 . . . . 133 . . 30 192 402 188 139 436 491 Initial 133 | . . 26 . . . 19 . . . . . . . 7 10 6 28 45 49 133 Average 115 | . 20 26 . . 26 280 . . . . 42 . . 12 59 155 155 91 182 179 Maximum Alert Level 2 | . . . . . 1 2 . . . . . . . . . 2 . . 2 2 Low Security (%) 77 | 100 100 100 . 100 98 30 . . . . 100 . . 100 100 80 100 100 53 53 Level 1 18 | . . . . . 1 39 . . . . . . . . . 13 . . 42 43 Level 2 4 | . . . . . . 29 . . . . . . . . . 6 . . 3 3 Level 3 . | . . . . . . . . . . . . . . . . . . . . . Level 4 . | . . . . . . . . . . . . . . . . . . . . . Level 5 . | . . . . . . . . . . . . . . . . . . . . . High Security . | . . . . . . . . . . . . . . . . . . . . . Max Security . | . . . . . . . . . . . . . . . . . . . . . Squads Dispatched 38 | . . . . . 2 10 . . . . 5 . . 1 1 1 . 2 6 10 Investigation 7 | . . . . . . 3 . . . . . . . . 1 1 . . . 2 Extermination 12 | . . . . . . 2 . . . . 1 . . 1 . . . 1 3 4 Reinforcement 15 | . . . . . 2 2 . . . . 4 . . . . . . . 3 4 Assault . | . . . . . . . . . . . . . . . . . . . . . Garrison 4 | . . . . . . 3 . . . . . . . . . . . 1 . . Intercept . | . . . . . . . . . . . . . . . . . . . . . Construction Impeded 5 | . . . . . . . . . . . 1 . . . . . . . 2 2 Haulers Reinforced 2 | . . . . . . . . . . . 1 . . . . . . . . 1 Stealth | -11 -10 -10 -10 -9 -8 -7 -7 -7 -7 -6 -6 -6 -6 -5 -5 -5 -5 -5 -4 -3 --------- Run | Scr Mat Min Exi Min Mat Fac Low Low Dat Pro Fac Low Low Fac Ext Cet Arc Hub Fac Res Distress Signals 13 | . . . . . 2 1 . . . . 1 . . . 1 2 . 1 3 2 Communications Jammed . | . . . . . . . . . . . . . . . . . . . . . Distress Signals . | . . . . . . . . . . . . . . . . . . . . . Times Spotted 267 | . 4 . . 1 25 20 4 8 . 11 16 . . 5 19 30 6 6 48 64 Peak Tracking Total 8 | . 3 . . 1 4 5 3 3 . 4 3 . . 5 4 6 3 3 8 6 Tactical Retreats 12 | . . . . . 3 . . . . . 2 . . . 3 . . . . 4 Traps | -11 -10 -10 -10 -9 -8 -7 -7 -7 -7 -6 -6 -6 -6 -5 -5 -5 -5 -5 -4 -3 ------- Run | Scr Mat Min Exi Min Mat Fac Low Low Dat Pro Fac Low Low Fac Ext Cet Arc Hub Fac Res Traps Triggered 8 | . . . . . 1 1 . . . . . . . . 1 . . . 4 1 Indirectly . | . . . . . . . . . . . . . . . . . . . . . Trap Hack Attempts . | . . . . . . . . . . . . . . . . . . . . . Triggered . | . . . . . . . . . . . . . . . . . . . . . Disarmed . | . . . . . . . . . . . . . . . . . . . . . Reprogrammed . | . . . . . . . . . . . . . . . . . . . . . Reused . | . . . . . . . . . . . . . . . . . . . . . Traps Extracted . | . . . . . . . . . . . . . . . . . . . . . Installed . | . . . . . . . . . . . . . . . . . . . . . Triggered 1 | . . . . . . . . . . . . . . . 1 . . . . . Power Sources Rigged 5 | . . . . . 5 . . . . . . . . . . . . . . . Exploded 4 | . . . 1 . 3 . . . . . . . . . . . . . . . Machines | -11 -10 -10 -10 -9 -8 -7 -7 -7 -7 -6 -6 -6 -6 -5 -5 -5 -5 -5 -4 -3 ---------- Run | Scr Mat Min Exi Min Mat Fac Low Low Dat Pro Fac Low Low Fac Ext Cet Arc Hub Fac Res Machines Disabled 32 | . . . . . 2 9 . . . . 4 . . . 1 2 2 . 8 4 Max in Single Turn 6 | . . . . . 1 6 . . . . 1 . . . 1 1 1 . 2 1 Garrison Access 4 | . . . . . . . . . . . . . . 1 . . . 1 1 1 Machines Sabotaged . | . . . . . . . . . . . . . . . . . . . . . Garrisons Compromised . | . . . . . . . . . . . . . . . . . . . . . Overloaded Fab Kills . | . . . . . . . . . . . . . . . . . . . . . Fab Network Shutdowns 1 | . . . . . . 1 . . . . . . . . . . . . . . Hacking | -11 -10 -10 -10 -9 -8 -7 -7 -7 -7 -6 -6 -6 -6 -5 -5 -5 -5 -5 -4 -3 --------- Run | Scr Mat Min Exi Min Mat Fac Low Low Dat Pro Fac Low Low Fac Ext Cet Arc Hub Fac Res Machines Accessed 50 | . . . . . 6 6 1 . 4 1 3 2 . 2 7 3 1 5 4 5 Terminals 32 | . . . . . 5 4 1 . . 1 1 . . 1 7 3 . 4 2 3 Fabricators 3 | . . . . . . 1 . . . . 1 . . . . . . . . 1 Repair Stations 4 | . . . . . 1 1 . . . . 1 . . . . . . . 1 . Recycling Units . | . . . . . . . . . . . . . . . . . . . . . Scanalyzers . | . . . . . . . . . . . . . . . . . . . . . Garrison Access 4 | . . . . . . . . . . . . . . 1 . . . 1 1 1 Total Hacks 140 | . . . . . 14 13 1 . 29 1 4 5 . 6 15 5 25 6 9 7 Successful 118 | . . . . . 10 10 1 . 29 1 3 5 . 4 8 5 25 5 8 4 Failed 22 | . . . . . 4 3 . . . . 1 . . 2 7 . . 1 1 3 Catastrophic 1 | . . . . . . . . . . . . . . . . . . . . 1 Database Lockouts . | . . . . . . . . . . . . . . . . . . . . . Manual 35 | . . . 1 . 9 5 1 . . . . 2 . 2 8 . . 5 1 1 Terminals 57 | . . . . . 12 7 1 . . 1 1 . . 4 15 5 . 5 2 4 Fabricators 7 | . . . . . . 3 . . . . 2 . . . . . . . . 2 Repair Stations 12 | . . . . . 2 3 . . . . 1 . . . . . . . 6 . Recycling Units . | . . . . . . . . . . . . . . . . . . . . . Scanalyzers . | . . . . . . . . . . . . . . . . . . . . . Garrison Access 5 | . . . . . . . . . . . . . . 2 . . . 1 1 1 Terminal Hacks 80 | . . . . . 4 2 1 . 29 1 1 5 . 2 3 5 25 . . 2 Record 49 | . . . . . 1 . 1 . 11 1 . 4 . . 2 4 25 . . . Part Schematic 12 | . . . . . . . . . 11 . . . . 1 . . . . . . Robot Schematic 4 | . . . . . . . . . 4 . . . . . . . . . . . Robot Analysis 1 | . . . . . 1 . . . . . . . . . . . . . . . Prototype ID Bank 5 | . . . . . 1 1 . . 3 . . . . . . . . . . . Open Door 4 | . . . . . . . . . . . . 1 . . 1 1 . . . 1 Branch Access Points 2 | . . . . . . 1 . . . . . . . 1 . . . . . . Emergency Access Points 3 | . . . . . 1 . . . . . 1 . . . . . . . . 1 Fabricator Hacks 5 | . . . . . . 2 . . . . 2 . . . . . . . . 1 Network Status 1 | . . . . . . 1 . . . . . . . . . . . . . . Load Schematic 2 | . . . . . . . . . . . 1 . . . . . . . . 1 Build 2 | . . . . . . 1 . . . . 1 . . . . . . . . . Repair Station Hacks 9 | . . . . . 2 1 . . . . . . . . . . . . 6 . Scan Component 5 | . . . . . 1 1 . . . . . . . . . . . . 3 . Repair 4 | . . . . . 1 . . . . . . . . . . . . . 3 . Recycling Unit Hacks . | . . . . . . . . . . . . . . . . . . . . . Scanalyzer . | . . . . . . . . . . . . . . . . . . . . . Garrison Access Hacks 4 | . . . . . . . . . . . . . . 1 . . . 1 1 1 Seal Access 4 | . . . . . . . . . . . . . . 1 . . . 1 1 1 Unauthorized Hacks 20 | . . . . . 4 5 . . . . . . . 1 5 . . 4 1 . Terminals 19 | . . . . . 4 4 . . . . . . . 1 5 . . 4 1 . Assimilate 3 | . . . . . 1 1 . . . . . . . 1 . . . . . . Botnet 15 | . . . . . 3 3 . . . . . . . . 5 . . 3 1 . Operators 1 | . . . . . . . . . . . . . . . . . . 1 . . Fabricators 1 | . . . . . . 1 . . . . . . . . . . . . . . Haulers 1 | . . . . . . 1 . . . . . . . . . . . . . . Repair Stations . | . . . . . . . . . . . . . . . . . . . . . Recycling Units . | . . . . . . . . . . . . . . . . . . . . . Scanalyzers . | . . . . . . . . . . . . . . . . . . . . . Garrison Access . | . . . . . . . . . . . . . . . . . . . . . Data Cores Recovered . | . . . . . . . . . . . . . . . . . . . . . Used . | . . . . . . . . . . . . . . . . . . . . . Hacking Detections 23 | . . . . . 4 4 . . . 1 . . . 2 4 1 . 1 2 4 Full Trace Events 6 | . . . . . 1 2 . . . . . . . . . 1 . . . 2 Feedback Events 1 | . . . . . 1 . . . . . . . . . . . . . . . Corruption 1 | . . . . . 1 . . . . . . . . . . . . . . . Feedback Blocked . | . . . . . . . . . . . . . . . . . . . . . Robot Schematics Acquired 4 | . . . . . . . . . 4 . . . . . . . . . . . Robots Built 2 | . . . . . . 1 . . . . 1 . . . . . . . . . Matter 405 | . . . . . . 153 . . . . 252 . . . . . . . . . Time 174 | . . . . . . 40 . . . . 134 . . . . . . . . . Total Robot Build Rating 5 | . . . . . . 1 . . . . 4 . . . . . . . . . Part Schematics Acquired 12 | . . . . . . . . . 11 . . . . 1 . . . . . . Parts Built . | . . . . . . . . . . . . . . . . . . . . . Matter . | . . . . . . . . . . . . . . . . . . . . . Time . | . . . . . . . . . . . . . . . . . . . . . Total Part Build Rating . | . . . . . . . . . . . . . . . . . . . . . Parts Repaired 4 | . . . . . 1 . . . . . . . . . . . . . 3 . Time 263 | . . . . . 32 . . . . . . . . . . . . . 231 . Parts Recycled . | . . . . . . . . . . . . . . . . . . . . . Recycled Matter . | . . . . . . . . . . . . . . . . . . . . . Retrieved Matter . | . . . . . . . . . . . . . . . . . . . . . Retrieved Components . | . . . . . . . . . . . . . . . . . . . . . Parts Scanalyzed . | . . . . . . . . . . . . . . . . . . . . . Part Schematics Acquired . | . . . . . . . . . . . . . . . . . . . . . Parts Damaged . | . . . . . . . . . . . . . . . . . . . . . Bothacking | -11 -10 -10 -10 -9 -8 -7 -7 -7 -7 -6 -6 -6 -6 -5 -5 -5 -5 -5 -4 -3 ------------ Run | Scr Mat Min Exi Min Mat Fac Low Low Dat Pro Fac Low Low Fac Ext Cet Arc Hub Fac Res Used RIF Installer . | . . . . . . . . . . . . . . . . . . . . . Robots Hacked . | . . . . . . . . . . . . . . . . . . . . . Non-combat . | . . . . . . . . . . . . . . . . . . . . . Combat . | . . . . . . . . . . . . . . . . . . . . . Robot Hacks Applied . | . . . . . . . . . . . . . . . . . . . . . Relay Couplers Released . | . . . . . . . . . . . . . . . . . . . . . Robots Rewired . | . . . . . . . . . . . . . . . . . . . . . Allies Hacked . | . . . . . . . . . . . . . . . . . . . . . Hacks Repelled . | . . . . . . . . . . . . . . . . . . . . . Allies | -11 -10 -10 -10 -9 -8 -7 -7 -7 -7 -6 -6 -6 -6 -5 -5 -5 -5 -5 -4 -3 -------- Run | Scr Mat Min Exi Min Mat Fac Low Low Dat Pro Fac Low Low Fac Ext Cet Arc Hub Fac Res Total Allies 17 | . . . . 3 . 2 . . . 1 1 . . 1 9 . . . . . Largest Group 5 | . . . . 3 1 1 . . . 1 1 . . 1 5 5 . . . . Highest-Rated Group 246 | . . . . 40 8 10 . . . 94 37 . . 10 246 246 . . . . Highest-Rated Ally 156 | . . . . 16 8 10 . . . 94 37 . . 10 156 156 . . . . Total Orders 7 | . . . . 3 . 4 . . . . . . . . . . . . . . ROAM 1 | . . . . . . 1 . . . . . . . . . . . . . . FOLLOW 1 | . . . . . . 1 . . . . . . . . . . . . . . GUARD 3 | . . . . 3 . . . . . . . . . . . . . . . . TUNNEL 2 | . . . . . . 2 . . . . . . . . . . . . . . Ally Attacks 47 | . . . . 12 . . . . . 14 . . . . 12 9 . . . . Total Damage 1188 | . . . . 100 . . . . . 569 . . . . 320 199 . . . . Kills 13 | . . . . 1 . . . . . 7 . . . . 4 1 . . . . Allies Corrupted 1 | . . . . . . . . . . . . . . . 1 . . . . . Allies Melted . | . . . . . . . . . . . . . . . . . . . . . Intel | -11 -10 -10 -10 -9 -8 -7 -7 -7 -7 -6 -6 -6 -6 -5 -5 -5 -5 -5 -4 -3 ------- Run | Scr Mat Min Exi Min Mat Fac Low Low Dat Pro Fac Low Low Fac Ext Cet Arc Hub Fac Res Robot Analysis Total 1 | . . . . . 1 . . . . . . . . . . . . . . . Derelict Logs Recovered 2 | . . . . . . . . 1 . . . 1 . . . . . . . . Drone Launches . | . . . . . . . . . . . . . . . . . . . . . Drone Recoveries . | . . . . . . . . . . . . . . . . . . . . . Exploration | -11 -10 -10 -10 -9 -8 -7 -7 -7 -7 -6 -6 -6 -6 -5 -5 -5 -5 -5 -4 -3 ------------- Run | Scr Mat Min Exi Min Mat Fac Low Low Dat Pro Fac Low Low Fac Ext Cet Arc Hub Fac Res Turns Passed 15915 | 75 162 117 314 387 2663 1319 663 434 106 467 1341 360 12 348 1396 822 371 346 1582 2630 Spaces Moved 8349 | 54 107 98 249 301 714 807 491 299 84 317 754 301 11 265 917 419 197 128 673 1163 Core 5 | 5 . . . . . . . . . . . . . . . . . . . . Treads . | . . . . . . . . . . . . . . . . . . . . . Legs 8344 | 49 107 98 249 301 714 807 491 299 84 317 754 301 11 265 917 419 197 128 673 1163 Wheels . | . . . . . . . . . . . . . . . . . . . . . Hover . | . . . . . . . . . . . . . . . . . . . . . Flight . | . . . . . . . . . . . . . . . . . . . . . Fastest Speed 50 | 50 120 120 120 120 120 125 127 127 127 120 120 120 120 120 120 120 150 150 120 112 Average Speed 128 | 113 120 120 120 120 124 127 128 127 127 124 120 120 120 120 120 123 150 151 149 142 Slowest Speed 180 | 120 120 120 120 120 150 130 130 127 127 127 120 120 120 120 120 150 150 180 150 150 Overloaded Moves . | . . . . . . . . . . . . . . . . . . . . . Propulsion Burnouts . | . . . . . . . . . . . . . . . . . . . . . Robots Hopped . | . . . . . . . . . . . . . . . . . . . . . Cave-ins Triggered 25 | . . . . . . . . . . . . . . . . . . . . 25 Exploration Rate (%) 44 | 4 24 20 60 88 61 18 66 53 70 46 20 47 4 9 92 94 96 14 21 36 Regions Visited 20 Branch Regions 13 Pre-discovered Areas 1 | . . . . . . . . . 1 . . . . . . . . . . . Known Exits Taken 20 | 1 1 1 1 1 1 1 1 1 1 1 1 1 1 1 1 1 1 1 1 . Unknown Exits Taken . | . . . . . . . . . . . . . . . . . . . . . Scrap Searched 3 | . . . . . . . 2 . . 1 . . . . . . . . . . Spaces Dug 33 | . . . . . . . . . . . . . . . . . . 2 . 31 Terrain Destroyed 217 | . . . . . 15 30 . . . . 30 . . . 8 13 11 8 48 54 Melee 30 | . . . . . . . . . . . . . . . . . . . . 30 Projectile 82 | . . . . . . . . . . . 3 . . . 3 13 11 8 28 16 AOE 105 | . . . . . 15 30 . . . . 27 . . . 5 . . . 20 8 Terrain Rammed . | . . . . . . . . . . . . . . . . . . . . . Walls Destroyed . | . . . . . . . . . . . . . . . . . . . . . Machines Disabled . | . . . . . . . . . . . . . . . . . . . . . Actions | -11 -10 -10 -10 -9 -8 -7 -7 -7 -7 -6 -6 -6 -6 -5 -5 -5 -5 -5 -4 -3 --------- Run | Scr Mat Min Exi Min Mat Fac Low Low Dat Pro Fac Low Low Fac Ext Cet Arc Hub Fac Res Total 12346 | 64 121 97 266 320 2411 1005 507 328 83 371 1116 300 10 284 1134 604 241 253 1060 1771 Wait 3041 | . . . . 3 1625 110 . 10 . 14 309 . . 9 157 74 29 108 254 339 Move 8327 | 53 106 97 248 300 713 806 490 298 83 316 753 300 10 264 916 418 196 127 672 1161 Hop . | . . . . . . . . . . . . . . . . . . . . . Pick Up 55 | 4 1 . 5 4 3 4 1 . . 4 4 . . 3 5 8 . 1 2 6 Fast Attach 71 | 7 1 . 4 2 6 5 . 2 . 3 3 . . . 3 7 1 2 7 18 Attach 21 | . . . . . 1 4 1 . . . 2 . . 1 1 5 . . 2 4 Detach 1 | . . . . . . . 1 . . . . . . . . . . . . . Swap 105 | . 1 . . 1 7 14 2 3 . 12 8 . . . 5 19 . 2 11 20 Drop 146 | . 2 . 9 4 9 19 3 3 . 13 9 . . 2 10 21 1 2 9 30 Fire 495 | . 10 . . 6 40 42 8 11 . 9 28 . . 5 30 52 13 11 84 146 Melee 39 | . . . . . . . . . . . . . . . . . . . . 39 Ram . | . . . . . . . . . . . . . . . . . . . . . Kick 15 | . . . . . 2 1 . . . . . . . . 1 . 1 . 4 6 Crush . | . . . . . . . . . . . . . . . . . . . . . Escape Stasis 22 | . . . . . . . . . . . . . . . 5 . . . 15 2 Rewire 3 | . . . . . . . 1 1 . . . . . . 1 . . . . . Trap 5 | . . . . . 5 . . . . . . . . . . . . . . . Miscellaneous . | . . . . . . . . . . . . . . . . . . . . . Route ------- -11/Scrapyard -10/Materials -10/Mines -10/Exiles -9/Mines -8/Materials -7/Factory (discovered 2 exits: *Low x2) -7/Lower Caves -7/Lower Caves -7/Data Miner -6/Proximity Caves -6/Factory -6/Lower Caves -6/Lower Caves -5/Factory (discovered 4 exits: Upp x2 / *Ext x2) -5/Extension (discovered 3 exits: *Fac x2 / *Cet) -5/Cetus (discovered 3 exits: *Fac x2 / *Arc) -5/Archives (discovered 3 exits: *Fac / *Hub x2) -5/Hub_04(d) -4/Factory -3/Research (discovered 1 exit: *Qua) History --------- Turn | Location | Event 7 | -11/Scrapyard | Identified exit to Materials 7 | -11/Scrapyard | Discovered exit to Materials (range 16) 76 | -11/Scrapyard | Entered Materials 76 | -10/Materials | Evolved 1 slot: Utility x1 184 | -10/Materials | Identified exit to Mines 184 | -10/Materials | Discovered exit to Mines (range 9) 238 | -10/Materials | Entered Mines 303 | -10/Mines | Build established: Hacker-Mutant 326 | -10/Mines | A weapon hastily lodged in a ceiling crevice suddenly fell to the ground 350 | -10/Mines | Deemed a non-threat by the Exiles lab entrance 350 | -10/Mines | Identified exit to Exiles 350 | -10/Mines | Discovered exit to Exiles (range 5) 355 | -10/Mines | Entered Exiles 388 | -10/Exiles | Met 8R-AWN 406 | -10/Exiles | Met EX-HEX 453 | -10/Exiles | Met EX-BIN 469 | -10/Exiles | Aligned with FarCom system 471 | -10/Exiles | Given EX-Vault access code 498 | -10/Exiles | Opened EX-Vault 509 | -10/Exiles | Found Prototype Leg 509 | -10/Exiles | Identified Potential Leg 515 | -10/Exiles | Found Prototype Device 515 | -10/Exiles | Identified PSU Rigger 527 | -10/Exiles | Found Prototype Ballistic Gun 563 | -10/Exiles | Exiles lab attacked by MAIN.C 655 | -10/Exiles | Identified exit to Mines 655 | -10/Exiles | Discovered exit to Mines (range 12) 669 | -10/Exiles | Left Exiles lab with PSU Rigger 669 | -10/Exiles | Entered Mines 783 | -9/Mines | Identified exit to Materials 783 | -9/Mines | Discovered exit to Materials (range 8) 793 | -9/Mines | Assisted by bots powering up and referring to "LRC-V3" 898 | -9/Mines | Allies destroyed YI-UF0 1056 | -9/Mines | Entered Materials 1056 | -8/Materials | Accompanied by 1 ally 1056 | -8/Materials | Evolved 4 slots: Power x1, Propulsion x2, Utility x1 1329 | -8/Materials | Build established: Hacker-Skirmisher 1977 | -8/Materials | Repaired Lgt. EM Pulse Cannon 3711 | -8/Materials | Identified exit to Factory 3711 | -8/Materials | Discovered exit to Factory (range 7) 3719 | -8/Materials | Entered Factory 3719 | -7/Factory | Evolved 2 slots: Weapon x2 3918 | -7/Factory | Local fabrication network quarantined 3925 | -7/Factory | Fabricated T-07 Excavator (x1) 4296 | -7/Factory | Garrison activated, responded to threat 4903 | -7/Factory | Identified exit to Lower Caves 5038 | -7/Factory | Entered Lower Caves 5136 | -7/Lower Caves | Build established: Hacker-Mutant 5670 | -7/Lower Caves | Identified exit to Lower Caves 5670 | -7/Lower Caves | Discovered exit to Lower Caves (range 16) 5701 | -7/Lower Caves | Entered another Lower Caves area 5702 | -7/Lower Caves | Encountered a Warlord checkpoint 5714 | -7/Lower Caves | Build established: Hacker-Skirmisher 5793 | -7/Lower Caves | Learned Factory trap positions 5938 | -7/Lower Caves | Core integrity fell below 50% 6111 | -7/Lower Caves | Identified exit to Data Miner 6111 | -7/Lower Caves | Discovered exit to Data Miner (range 9) 6135 | -7/Lower Caves | Entered Data Miner 6135 | -7/Data Miner | Identified exit to Proximity Caves 6135 | -7/Data Miner | Discovered exit to Proximity Caves (range 6) 6160 | -7/Data Miner | Met Data Miner 6188 | -7/Data Miner | Learned location of Section 7 (-3) 6188 | -7/Data Miner | Acquired the access code to Warlord's prototype stash 6214 | -7/Data Miner | Received God Mode back door access code from Data Miner 6241 | -7/Data Miner | Entered Proximity Caves 6359 | -6/Proximity Caves | Escorted by Enhanced Grunt 6592 | -6/Proximity Caves | Attracted the attention of an 0b10 checkpoint 6690 | -6/Proximity Caves | Identified exit to Factory 6690 | -6/Proximity Caves | Discovered exit to Factory (range 16) 6708 | -6/Proximity Caves | Entered Factory 6708 | -6/Factory | Evolved 2 slots: Utility x2 6709 | -6/Factory | Loaded intel: 118 trap records 6809 | -6/Factory | Build established: Scavenger-Skirmisher 7200 | -6/Factory | Fabricated I-36 Angel? 8043 | -6/Factory | Identified exit to Lower Caves 8043 | -6/Factory | Discovered exit to Lower Caves (range 6) 8049 | -6/Factory | Entered Lower Caves 8064 | -6/Lower Caves | Encountered a Warlord checkpoint 8075 | -6/Lower Caves | Learned Factory terminal intel 8291 | -6/Lower Caves | Learned location of 1 exit from Factory 8291 | -6/Lower Caves | Learned Armory terminal intel 8337 | -6/Lower Caves | Build established: Scavenger-Gunner 8406 | -6/Lower Caves | Identified exit to Lower Caves 8406 | -6/Lower Caves | Discovered exit to Lower Caves (range 2) 8409 | -6/Lower Caves | Entered another Lower Caves area 8412 | -6/Lower Caves | Identified exit to Factory 8412 | -6/Lower Caves | Discovered exit to Factory (range 9) 8421 | -6/Lower Caves | Entered Factory 8421 | -5/Factory | Evolved 2 slots: Power x1, Utility x1 8422 | -5/Factory | Identified exit to Upper Caves 8423 | -5/Factory | Loaded intel: 22 terminal locations 8568 | -5/Factory | Identified exit to Extension 8769 | -5/Factory | Entered Extension 8769 | -5/Extension | Accompanied by 1 ally 8785 | -5/Extension | Disrupted transfer network 9154 | -5/Extension | Rescued a captive Derelict 9155 | -5/Extension | Rescued a captive Derelict 9229 | -5/Extension | Rescued a captive Derelict 9231 | -5/Extension | Rescued a captive Derelict 9339 | -5/Extension | Spotted B-75 Beast 9412 | -5/Extension | Destroyed B-75 Beast 9432 | -5/Extension | Spotted B-75 Beast 9445 | -5/Extension | Destroyed B-75 Beast 9547 | -5/Extension | Identified exit to Factory 9547 | -5/Extension | Discovered exit to Factory (range 3) 9675 | -5/Extension | Identified exit to Cetus 9675 | -5/Extension | Discovered exit to Cetus (range 15) 9676 | -5/Extension | Discovered exit to Factory (range 15) 9754 | -5/Extension | Rescued a captive Derelict 9869 | -5/Extension | Rescued a captive Derelict 9892 | -5/Extension | Rescued a captive Derelict 9933 | -5/Extension | Rescued A7 9962 | -5/Extension | Rescued a captive Derelict 10165 | -5/Extension | Entered Cetus 10165 | -5/Cetus | Accompanied by 5 allies (A7) 10170 | -5/Cetus | Acquired a Cetus Manufacturing Module code from A7 10183 | -5/Cetus | Spotted Cetus Guard 10183 | -5/Cetus | Spotted Cetus Guard 10184 | -5/Cetus | Spotted Cetus Guard 10190 | -5/Cetus | Spotted Cetus Guard 10210 | -5/Cetus | Allies destroyed Cetus Guard 10217 | -5/Cetus | Destroyed Cetus Guard 10217 | -5/Cetus | Destroyed Cetus Guard 10230 | -5/Cetus | Core integrity fell below 50% 10230 | -5/Cetus | Destroyed Cetus Guard 10252 | -5/Cetus | Extracted ID and sensor layout for unrecognized location from A7's data core 10326 | -5/Cetus | Discovered exit to Factory (range 16) 10378 | -5/Cetus | Lost 4 parts (2n1u1w) 10489 | -5/Cetus | Incoming investigation squad redirected 10721 | -5/Cetus | Cetus Manufacturing Module disabled 10827 | -5/Cetus | Identified exit to Archives 10827 | -5/Cetus | Discovered exit to Archives (range 15) 10849 | -5/Cetus | Spotted Cetus Guard 10849 | -5/Cetus | Spotted Cetus Guard 10853 | -5/Cetus | Spotted Cetus Guard 10854 | -5/Cetus | Destroyed Cetus Guard 10864 | -5/Cetus | Destroyed Cetus Guard 10867 | -5/Cetus | Spotted Cetus Guard 10869 | -5/Cetus | Destroyed Cetus Guard 10869 | -5/Cetus | Destroyed Cetus Guard 10877 | -5/Cetus | Discovered exit to Factory (range 16) 10891 | -5/Cetus | Met Revision 17 10987 | -5/Cetus | Entered Archives 11142 | -5/Archives | Unable to access archive contents 11160 | -5/Archives | Unable to access archive contents 11166 | -5/Archives | Identified exit to Hub_04(d) 11166 | -5/Archives | Discovered exit to Hub_04(d) (range 16) 11175 | -5/Archives | Unable to access archive contents 11192 | -5/Archives | Unable to access archive contents 11195 | -5/Archives | Discovered exit to Hub_04(d) (range 15) 11294 | -5/Archives | Discovered exit to Factory (range 16) 11358 | -5/Archives | Entered Hub_04(d) 11515 | -5/Hub_04(d) | Garrison activated, responded to threat 11592 | -5/Hub_04(d) | Discovered exit to Factory (range 15) 11704 | -5/Hub_04(d) | Entered Factory 11704 | -4/Factory | Evolved 2 slots: Utility x2 11906 | -4/Factory | Repaired Cld. Fission Core 11982 | -4/Factory | Repaired Quantum Reactor 12003 | -4/Factory | Build established: Scavenger-Tank 12051 | -4/Factory | Repaired Quantum Rifle 13225 | -4/Factory | Identified exit to Research 13225 | -4/Factory | Discovered exit to Research (range 16) 13286 | -4/Factory | Entered Research 13286 | -3/Research | Evolved 2 slots: Utility x2 13787 | -3/Research | Spotted B-86 Titan 13806 | -3/Research | Destroyed B-86 Titan 14559 | -3/Research | Found Prototype Device 14559 | -3/Research | Identified Exp. Focal Shield 14625 | -3/Research | Identified exit to Quarantine 14625 | -3/Research | Discovered exit to Quarantine (range 9) 15247 | -3/Research | Spotted B-86 Titan 15271 | -3/Research | Destroyed B-86 Titan 15355 | -3/Research | System corruption reached 10% 15628 | -3/Research | Crushed by falling debris 15632 | -3/Research | Crushed by falling debris 15663 | -3/Research | Lost 3 parts (3u) 15671 | -3/Research | Crushed by falling debris 15688 | -3/Research | Crushed by falling debris 15696 | -3/Research | Crushed by falling debris 15699 | -3/Research | Crushed by falling debris 15707 | -3/Research | Crushed by falling debris 15709 | -3/Research | Crushed by falling debris 15716 | -3/Research | Crushed by falling debris 15727 | -3/Research | Crushed by falling debris 15727 | -3/Research | System corruption reached 30% 15737 | -3/Research | Crushed by falling debris 15752 | -3/Research | Crushed by falling debris 15757 | -3/Research | Crushed by falling debris 15757 | -3/Research | Core integrity fell below 50% 15770 | -3/Research | Crushed by falling debris 15790 | -3/Research | Crushed by falling debris 15801 | -3/Research | Lost 19 parts (3p3n7u6w) 15811 | -3/Research | Crushed by falling debris 15846 | -3/Research | Crushed by falling debris 15854 | -3/Research | Crushed by falling debris 15856 | -3/Research | Crushed by falling debris 15867 | -3/Research | Crushed by falling debris 15874 | -3/Research | Crushed by falling debris 15874 | -3/Research | Core integrity fell below 20% 15879 | -3/Research | Crushed by falling debris 15910 | -3/Research | Crushed by falling debris 15911 | -3/Research | Crushed by falling debris 15917 | -3/Research | Crushed by falling debris 15917 | -3/Research | Smashed by cave-in Last Messages --------------- System corrupted by crushing effect (+1). The unstable cave ceiling collapses. Crushed by falling debris. The unstable cave ceiling collapses. Crushed by falling debris. The unstable cave ceiling collapses. Crushed by falling debris. The unstable cave ceiling collapses. Crushed by falling debris. Adv. Cooling System destroyed. System corrupted: Heat flow error (+106). The unstable cave ceiling collapses. Crushed by falling debris. TA5:TMV>2GJN564SRSEFB=KAKSMYFQO47ZQBUH The unstable cave ceiling collapses. Crushed by falling debris. The unstable cave ceiling collapses. Crushed by falling debris. The unstable cave ceiling collapses. Crushed by falling debris. Map ----- +----------------------------------------------------+ | ??#### T """"""" ]="#??????????????????? | | ??# """"""" !!##??????????????????? | | ??# =%!#??????????????????? | | ??# = [ =!*]#??????????????????? | | ??# = [= ###??????????????????? | | ??# #"" "####+###########?????????????###????? | | ??# #"F ""#??????????????????????????###%###??? | | ###[! #"""""#??????????????????????????# = [#??? | | !%%*[ #######??????????????????????????# #??? | | !=! #????????????????????????????????# #??? | | = #????????????????????????????????# #??? | | #????????????????????????????????# ## | | ########????????????????????????????????#== ## | | ????????????????????????????????????????#%!! ## | | ????????????????????????????????????????#* ! ## | | ????????????????Y????????????????######## [ / ## | | ?????????????????????????????????# # # ## * ## | | ???????????????????????????####### # # ## = ## | | ???????????????????????????#""""" T# ## | | ???????????????????????????#"" "" ###+###### | | ???????????????????????????#"" | | ???????????????????????????#"" > | | ???????????????????????????#" | | ???????????????????????????#"" "" ###+###### | | ???????#####################""""" # | | ??????## # ## ##@######## # # ## ! | | ?????## ###################??????# # # ## ! | | ###### ##????????????????????????######## """ | | ##????????????????????????????????# """ ! | | #######?????????????????????????????????# """ | | ????????????????????????????????????????# | | ????????????????????????????????????????# ] | | ????????????????????????????????????????########## | | ?????????????????????????????????????????????????? | | ?????????????????????????????????????????????????? | | ?????????????????????????????????????????????????? | | ?????????????????????????????????????????????????? | | ?????????????????????????????????????????????????? | | ?????????????????????????????????????????????????? | | ?????????????????????????????????????????????????? | | ?????????????????????????????????????????????????? | | ?????????????????????????????????????????????????? | | ?????????????????????????????????????????????????? | | ?????????????????????????????????????????????????? | | ?????????????????????????????????????????????????? | | ?????????????????????????????????????????????????? | | ?????????????????????????????????????????????????? | | ?????????????????????????????????????????????????? | | ?????????????????????????????????????????????????? | | ?????????????????????????????????????????????????? | +----------------------------------------------------+ Best States ------------- Heat Dissipation 111 Coolant Potential 120 Energy Generation 61 Energy Capacity 1835 Matter Stores 300 Matter Capacity 300 Sight Range 16 Terrain Scan Range 20 Terrain Scan Density 85 Base Temperature (-) 200 Armor Coverage 675 Resistance: KI 65 Resistance: TH 35 Resistance: EX 35 Resistance: EM 35 Resistance: I 35 Resistance: S 35 Resistance: P 35 Weapon Cycling 20 Evasion (%) 40 Targeting Accuracy 8 Target Analysis 8 Offensive Hacking 34 Item Schematics ----------------- Combat Drone Bay | -7/Data Miner | Free Lgt. Regenerative Plating | -7/Data Miner | Free Triangulator | -7/Data Miner | Free Exp. Terrain Scan Processor | -7/Data Miner | Free Exp. Targeting Computer | -7/Data Miner | Free Tactical Coordination Suite | -7/Data Miner | Free Exp. ECM Suite | -7/Data Miner | Free Cloaking Device | -7/Data Miner | Free Mni. Smartbomb Launcher | -7/Data Miner | Free Plasma Sword | -7/Data Miner | Free Kinetic Spear | -7/Data Miner | Free Antigrav Array | -5/Factory | Hacked Robot Schematics ------------------ S-27 Virus | -7/Data Miner | Free G-50 Soldier | -7/Data Miner | Free X-72 Disruptor | -7/Data Miner | Free I-36 Angel | -7/Data Miner | Free Fabricated ------------ T-07 Excavator | x1 | -7/Factory | Preloaded I-36 Angel | x1 | -6/Factory Alien Tech Used ----------------- None Achievements -------------- Explorer Gun Specialist Gunslinger Prison Break Prolific Hacker Quantum Hacking Revising The Future True Hacker Challenges ------------ None Game ------ Seed MagneticTachyonReactor Manual? 0 Play Time 02:20:28 Cumulative 35.9 hours Start 2020.12.07 @ 06:22:53 End 2020.12.08 @ 17:05:09 Sessions 3 Manual Loads 0 Difficulty Explorer Special Mode None Game No. 22 Rogue 13 Adventurer 0 Explorer 9 Win Type - Total 0 Types 0/0/0/0/0/0/0/0/0 Lore% 28 Gallery% 42 Achievement% 32 Wizard Run 0 Options --------- ASCII 0 Keyboard 0 Movement Numpad Keybinds 0 Fullscreen 0 Font 16/SmallcapsGlow Map View 76x50 Tactical HUD 0 Map Filters NONE Filters NONE Steam 1 RUN: f85468fb-1631-45b4-80e4-8e88f40cd5b3